Cogmind - Beta 13 @@@ ROGUE MODE // 2024.03.18 @ 15:29:39 Player: Rohain Result: Destroyed by D-63 Destroyer with Heavy Rocket Launcher Performance ------------- Evolutions (4) 2000 Regions Visited (14) 2800 Robots Destroyed (102) 510 Value Destroyed (3811) 3811 Prototype IDs (8) 160 Alien Tech Used (0) 0 Bonus (1109) 1109 TOTAL SCORE: 10390 Bonus ------- High Alert Combat Kills 55 Follower Combat Kills 506 Met Imprinter 300 Was Imprinted 300 Friendly Fire -52 Cogmind --------- Core Integrity 0/850 Matter 300/300 Energy 60/100 System Corruption 3% Temperature Cool (0) Movement Walking (120) Location -5/Proximity Caves Parts ------- > --- POWER (1) -------- (None) > --- PROPULSION (6) --- Carbon-fiber Leg Carbon-fiber Leg > --- UTILITY (6) ------ Advanced Heat Sink Improved Cooling System Advanced Signal Interpreter Makeshift Salvage Targeting Computer Advanced Targeting Computer > --- WEAPON (2) ------- Heavy Laser Heavy Plasma Cannon > --- INVENTORY (5) ---- Light Nuclear Core Advanced Heat Sink Hacking Drone Bay (1/1) Heavy Laser Disruptor Cannon Peak State ------------ > --- POWER ------------ Light Particle Reactor > --- PROPULSION ------- Armored Huge Wheel Armored Huge Wheel Armored Huge Wheel > --- UTILITY ---------- Advanced Heat Sink Large Storage Unit Advanced Signal Interpreter Advanced Targeting Computer Improved Particle Charger Reflective Plating > --- WEAPON ----------- Heavy Laser Heavy Laser > --- INVENTORY -------- Cold Fusion Reactor Light Particle Reactor Flexi-carbon Leg Improved Heat Sink Advanced Targeting Computer Improved Particle Charger Hardened Medium Armor Plating Improved Medium Armor Plating Layered Medium Armor Plating Heavy Laser Heavy Laser Gatling Laser Gatling Laser Heavy Plasma Cannon [Rating: 68] Favorites ----------- Power Improved Deuterium Engine Engine Improved Deuterium Engine Power Core Nuclear Core Reactor Light Antimatter Reactor Propulsion Armored Huge Wheel Leg Aluminum Leg Wheel Armored Huge Wheel Flight Unit Xenon Bombardment Thruster Utility Large Storage Unit Device Improved Heat Sink Storage Large Storage Unit Processor Signal Interpreter Protection Reactive Plating Weapon Gatling Laser Energy Gun Gatling Laser Energy Cannon Ion Burst Cannon Ballistic Cannon Flak Cannon Build | -11 -10 -10 -10 -9 -8 -8 -7 -7 -7 -6 -6 -6 -6 -5 ------- Run | Yrd Mat Min Exi Min Mat Sto Fac Low Low Fac Low Low Zio Pro Slots Evolved 8 | . . . . . 4 . 2 . . 2 . . . . Power . | . . . . . . . . . . . . . . . Propulsion 4 | . . . . . 2 . . . . 2 . . . . Utility 4 | . . . . . 2 . 2 . . . . . . . Weapon . | . . . . . . . . . . . . . . . Parts Attached 124 | 5 8 1 . . 29 8 9 3 3 30 1 12 1 14 Power 16 | . 2 . . . 4 1 . 1 . 4 . 3 . 1 Engine 8 | . 2 . . . 3 1 . 1 . . . . . 1 Core 2 | . . . . . 1 . . . . . . 1 . . Reactor 6 | . . . . . . . . . . 4 . 2 . . Propulsion 29 | 2 4 . . . 5 1 1 . 1 7 . 2 . 6 Treads . | . . . . . . . . . . . . . . . Leg 19 | 2 4 . . . 3 . . . . 4 . 1 . 5 Wheel 8 | . . . . . 2 1 1 . 1 3 . . . . Hover . | . . . . . . . . . . . . . . . Flight 2 | . . . . . . . . . . . . 1 . 1 Utility 42 | 1 2 . . . 8 1 7 1 1 13 1 2 1 4 Device 19 | . 2 . . . 5 1 2 . . 5 . . 1 3 Storage 2 | 1 . . . . 1 . . . . . . . . . Processor 7 | . . . . . 1 . . . 1 2 1 1 . 1 Hackware . | . . . . . . . . . . . . . . . Protection 14 | . . . . . 1 . 5 1 . 6 . 1 . . Artifact . | . . . . . . . . . . . . . . . Weapon 37 | 2 . 1 . . 12 5 1 1 1 6 . 5 . 3 Energy Gun 29 | 2 . 1 . . 10 3 1 . 1 6 . 4 . 1 Energy Cannon 6 | . . . . . . 2 . 1 . . . 1 . 2 Ballistic Gun . | . . . . . . . . . . . . . . . Ballistic Cannon 2 | . . . . . 2 . . . . . . . . . Launcher . | . . . . . . . . . . . . . . . Special Weapon . | . . . . . . . . . . . . . . . Impact Weapon . | . . . . . . . . . . . . . . . Slashing Weapon . | . . . . . . . . . . . . . . . Piercing Weapon . | . . . . . . . . . . . . . . . Special Melee Weapon . | . . . . . . . . . . . . . . . Unidentified Prototypes 8 | . . . . . 2 4 . . . 1 . . 1 . Corrupted Parts 1 | . . . . . . . . . . . . . . 1 System Corruption 3 | . . . . . . . . . . . . . . 3 Parts Lost 50 | . 1 . . . 10 . 4 2 2 14 . 11 . 6 Power 7 | . . . . . 1 . . 1 . 1 . 3 . 1 Propulsion 17 | . . . . . 3 . . . 1 4 . 4 . 5 Utility 13 | . . . . . 1 . 3 1 . 6 . 2 . . Weapon 13 | . 1 . . . 5 . 1 . 1 3 . 2 . . Highest Loss Streak 11 | . 1 . . . 7 . 3 1 2 11 . 9 . 4 To Critical Strikes . | . . . . . . . . . . . . . . . Average Slot Usage (%) 76 | . 88 91 100 100 81 80 80 75 83 77 80 58 36 72 Engine 5 | . 14 14 14 14 3 8 7 6 7 2 . . . 5 Reactor 1 | . . . . . . . . . . 3 6 3 . . Leg 9 | . 28 28 28 28 10 . . . . 2 20 11 . 21 Wheel 8 | . . . . . 10 18 15 15 15 15 . . . . Device 8 | . 5 14 14 14 9 8 19 7 7 7 6 4 3 12 Storage 7 | . 14 14 14 14 9 9 7 7 7 6 6 4 . . Processor 11 | . . . . . 9 9 7 7 14 12 20 20 26 20 Protection 6 | . . . . . 5 9 6 14 15 11 6 2 . . Energy Gun 12 | . 26 19 28 28 15 15 7 7 7 12 13 7 . 2 Energy Cannon 1 | . . . . . . 2 7 7 6 . . . . 5 Naked Turns . | . . . . . . . . . . . . . . . Heaviest Build 69 | 9 15 16 16 16 46 52 56 67 67 69 48 50 1 32 Greatest Support 84 | 20 20 20 20 20 56 56 56 56 56 84 55 60 6 80 Greatest Overweight (x) 3 | . . . . . . . . 1 1 3 . . . . Average Overweight (x) . | . . . . . . . . . 1 . . . . . Largest Inventory Capacity 15 | 8 8 8 8 8 15 15 15 15 15 15 15 15 5 5 Average Capacity 12 | 7 8 8 8 8 11 15 15 15 15 15 15 12 5 5 Most Carried 15 | 5 8 8 8 8 15 15 15 13 13 15 8 11 5 5 Average Carried 10 | 3 6 8 8 8 10 14 14 11 12 12 6 7 4 4 Final Capacity 15 | 8 8 8 8 8 15 15 15 15 15 15 15 5 5 5 Final Carried 15 | 4 8 8 8 8 15 15 13 12 11 6 8 5 5 5 Class Distribution -------------------- 71% | Mutant 25% | Scavenger-Mutant Dominant Class ---------------- Mutant | -10/Materials Mutant | -10/Mines Scavenger-Mutant | -10/Exiles Scavenger-Mutant | -9/Mines Mutant | -8/Materials Mutant | -8/Storage Mutant | -7/Factory Mutant | -7/Lower Caves Mutant | -7/Lower Caves Mutant | -6/Factory Scavenger-Mutant | -6/Lower Caves Mutant | -6/Lower Caves Mutant | -6/Zion Scavenger-Mutant | -5/Proximity Caves Resources | -11 -10 -10 -10 -9 -8 -8 -7 -7 -7 -6 -6 -6 -6 -5 ----------- Run | Yrd Mat Min Exi Min Mat Sto Fac Low Low Fac Low Low Zio Pro Matter Collected 1681 | 250 138 10 . . 409 96 70 67 25 240 132 109 . 135 Remotely . | . . . . . . . . . . . . . . . Salvage Created 4173 | . 484 . . . 746 828 328 214 96 897 115 201 . 264 Parts 197 | . 19 . . . 39 40 20 13 4 33 3 16 . 10 Haulers Intercepted 4 | . . . . . 2 2 . . . . . . . . Recyclers Shooed 3 | . 1 . . . 2 . . . . . . . . . Parts Field Recycled . | . . . . . . . . . . . . . . . Retrieved Matter . | . . . . . . . . . . . . . . . Parts Self-Destructed 35 | . . . . . . . . 19 2 . 4 5 2 3 Prevented 28 | . . . . . . . . 1 . . 2 11 . 14 Kills | -11 -10 -10 -10 -9 -8 -8 -7 -7 -7 -6 -6 -6 -6 -5 ------- Run | Yrd Mat Min Exi Min Mat Sto Fac Low Low Fac Low Low Zio Pro Combat Hostiles Destroyed 89 | . 10 . . . 15 18 7 8 3 18 1 3 . 6 Guns 61 | . 10 . . . 11 16 2 1 . 17 1 3 . . Cannons 22 | . . . . . 3 1 3 7 3 . . . . 5 Classes Destroyed 13 | . 3 . . . 5 1 1 . . 2 . 1 . . Worker 4 | . 1 . . . 1 . 1 . . 1 . . . . Hauler 4 | . . . . . 2 2 . . . . . . . . Recycler 1 | . . . . . 1 . . . . . . . . . Watcher 4 | . 2 . . . . . 1 . . 1 . . . . Swarmer 26 | . . . . . 4 5 . 6 2 6 . . . 3 Grunt 30 | . 10 . . . 5 4 1 1 . 5 1 . . 3 Brawler 2 | . . . . . . . . . . 2 . . . . Duelist 3 | . . . . . . 2 . . . 1 . . . . Sentry 16 | . . . . . 5 7 1 1 1 1 . . . . Specialist 2 | . . . . . . . . . . 2 . . . . Hunter 5 | . . . . . 1 . 2 . . . . 2 . . Programmer 4 | . . . . . . . 3 . . 1 . . . . Behemoth 1 | . . . . . . . . . . . . 1 . . Best Kill Streak 6 | . 4 . . . 5 4 2 3 3 4 1 2 . 6 Combat Bots Only 6 | . 4 . . . 5 4 2 3 3 4 1 2 . 6 Max Kills in Single Turn 2 | . 2 . . . 2 1 2 2 1 2 1 1 . 1 Gunslinging 1 | . . . . . 1 . . . . 1 . . . . Exploded . | . . . . . . . . . . . . . . . Melee . | . . . . . . . . . . . . . . . Uniques/NPCs Destroyed . | . . . . . . . . . . . . . . . Combat | -11 -10 -10 -10 -9 -8 -8 -7 -7 -7 -6 -6 -6 -6 -5 -------- Run | Yrd Mat Min Exi Min Mat Sto Fac Low Low Fac Low Low Zio Pro Hostile Shots Fired 827 | . 53 . . . 103 63 100 56 54 270 8 80 . 40 Missed 254 | . 11 . . . 39 16 34 19 9 87 3 25 . 11 Damage Taken 8888 | . 472 . . . 982 706 914 477 539 2712 97 1187 . 802 Core 1374 | . 143 . . . 121 83 90 9 59 409 58 253 . 149 Absorbed by Shields . | . . . . . . . . . . . . . . . Ignored by Resistances 324 | . . . . . 31 48 4 115 72 54 . . . . Regen/Repaired (Parts) 117 | . . . . . 41 76 . . . . . . . . Core Remaining (%) 70 | 100 . . . 42 . 62 . . 77 . . . . . Volleys Fired 316 | . 46 1 . . 53 58 27 14 6 52 5 30 . 24 Largest 2 | . 2 1 . . 2 2 2 2 2 2 2 2 . 2 Hottest 171 | . 100 50 . . 116 155 169 169 169 160 160 160 . 171 Shots Fired 585 | . 90 1 . . 100 116 53 28 12 103 10 45 . 27 Gun 482 | . 90 1 . . 74 108 27 14 7 103 10 45 . 3 Cannon 103 | . . . . . 26 8 26 14 5 . . . . 24 Launcher . | . . . . . . . . . . . . . . . Special . | . . . . . . . . . . . . . . . Kinetic 26 | . . . . . 26 . . . . . . . . . Thermal 523 | . 90 1 . . 65 116 53 28 12 103 10 19 . 26 Explosive . | . . . . . . . . . . . . . . . Electromagnetic 36 | . . . . . 9 . . . . . . 26 . 1 Robot Hit Streak 18 | . 14 2 . . 13 11 6 5 13 17 10 18 . 9 Robot Miss Streak 8 | . 5 . . . 6 3 6 8 2 4 3 2 . 3 Penetration Max . | . . . . . . . . . . . . . . . Secondary Targets 10 | . 2 . . . 2 5 . . . 1 . . . . Max Gunslinging Chain 1 | . 1 . . . 1 1 . . . 1 . . . . Shots Hit Robots 407 | . 57 1 . . 76 70 35 14 8 78 9 42 . 17 Core Hits 202 | . 24 1 . . 46 26 14 9 6 43 7 18 . 8 Critical Kills 1 | . . . . . . . . . . . . . . 1 Critical Parts Destroyed . | . . . . . . . . . . . . . . . Critical Strikes 18 | . 3 . . . 4 8 . . . 2 . . . 1 Burn 17 | . 3 . . . 4 8 . . . 2 . . . . Meltdown 1 | . . . . . . . . . . . . . . 1 Melee Attacks . | . . . . . . . . . . . . . . . Impact . | . . . . . . . . . . . . . . . Slashing . | . . . . . . . . . . . . . . . Piercing . | . . . . . . . . . . . . . . . Sneak Attacks . | . . . . . . . . . . . . . . . Combat Hostiles . | . . . . . . . . . . . . . . . Follow-up Attacks . | . . . . . . . . . . . . . . . Damage Inflicted 8662 | . 767 13 . . 1229 1552 1176 454 272 1630 173 778 . 618 Guns 6016 | . 767 13 . . 882 1319 347 77 58 1630 173 730 . 20 Cannons 2558 | . . . . . 310 230 829 377 214 . . . . 598 Explosions 85 | . . . . . 37 . . . . . . 48 . . Melee . | . . . . . . . . . . . . . . . Ramming 3 | . . . . . . 3 . . . . . . . . Kinetic 310 | . . . . . 310 . . . . . . . . . Thermal 8003 | . 767 13 . . 784 1549 1176 454 272 1630 173 585 . 600 Explosive . | . . . . . . . . . . . . . . . Electromagnetic 346 | . . . . . 135 . . . . . . 193 . 18 Impact . | . . . . . . . . . . . . . . . Slashing . | . . . . . . . . . . . . . . . Piercing . | . . . . . . . . . . . . . . . Highest Corruption 18 | . . . . . . . 7 7 11 18 18 18 18 3 Average Corruption 11 | . . . . . . . 3 7 7 17 18 18 18 3 Corruption Purged . | . . . . . . . . . . . . . . . Corruption Blocked 8 | . . . . . . . . . . . . . . 8 Effects 109 | . . . . . . . 9 19 4 13 35 20 2 7 Message Errors 24 | . . . . . . . 4 3 2 2 5 7 . 1 Matter Fused 26 | . . . . . . . 1 3 . 6 11 3 . 2 Heat Flow Errors 12 | . . . . . . . 1 3 . . 3 3 . 2 Energy Discharges 17 | . . . . . . . 1 5 . 3 6 2 . . Parts Rejected 2 | . . . . . . . . 1 . . . 1 . . Parts Fused 2 | . . . . . . . . 1 . 1 . . . . Data Loss (minor) 12 | . . . . . . . 1 3 1 . 3 1 2 1 Data Loss (major) 6 | . . . . . . . . . 1 . 5 . . . Alerts 4 | . . . . . . . . . . . 2 2 . . Weapon Failures 4 | . . . . . . . 1 . . 1 . 1 . 1 Overload Shots . | . . . . . . . . . . . . . . . Overflow Damage 73 | . . . . . . . 45 20 . . . . . 8 Projectiles 73 | . . . . . . . 45 20 . . . . . 8 Explosions . | . . . . . . . . . . . . . . . Melee . | . . . . . . . . . . . . . . . Knockbacks 13 | . . . . . 13 . . . . . . . . . Impact . | . . . . . . . . . . . . . . . Kinetic 12 | . . . . . 12 . . . . . . . . . Secondary 1 | . . . . . 1 . . . . . . . . . Self-Inflicted Damage 76 | . . . . . . 1 75 . . . . . . . Shots 1 | . . . . . . . 1 . . . . . . . Rammed 1 | . . . . . . 1 . . . . . . . . Targets Rammed 1 | . . . . . . 1 . . . . . . . . Kicked . | . . . . . . . . . . . . . . . Crushed . | . . . . . . . . . . . . . . . Highest Temperature 531 | . 453 . . . 57 133 78 313 235 531 192 197 . 205 Average Temperature 99 | . 141 . . . 14 31 14 117 121 153 60 54 . 105 Received Heat Transfer 1815 | . 258 . . . 288 180 69 54 171 546 45 108 . 96 Effects 15 | . 5 . . . . . . 1 1 8 . . . . Shutdowns 3 | . 2 . . . . . . . . 1 . . . . Energy Bleed 3 | . 1 . . . . . . 1 . 1 . . . . Interference 6 | . . . . . . . . . 1 5 . . . . Matter Decay 1 | . 1 . . . . . . . . . . . . . Short Circuit 1 | . . . . . . . . . . 1 . . . . Damage (minor) 1 | . 1 . . . . . . . . . . . . . Siege Activations . | . . . . . . . . . . . . . . . Robots Corrupted 1 | . . . . . 1 . . . . . . . . . Combat Hostiles 1 | . . . . . 1 . . . . . . . . . Parts Fried 1 | . . . . . . . . . . . . 1 . . Impact Corruptions . | . . . . . . . . . . . . . . . Robots Melted 5 | . . . . . . 1 2 . . 1 . . . 1 Combat Hostiles 5 | . . . . . . 1 2 . . 1 . . . 1 Parts Melted 46 | . 5 . . . 5 16 6 . . 10 1 1 . 2 Heat Transferred 16084 | . 2368 37 . . 2098 3284 1529 598 361 3316 400 1200 . 893 Parts Sabotaged . | . . . . . . . . . . . . . . . Parts Stolen . | . . . . . . . . . . . . . . . Parts Stripped . | . . . . . . . . . . . . . . . Power Chain Reactions 2 | . . . . . 1 . . . . . . 1 . . Alert | -11 -10 -10 -10 -9 -8 -8 -7 -7 -7 -6 -6 -6 -6 -5 ------- Run | Yrd Mat Min Exi Min Mat Sto Fac Low Low Fac Low Low Zio Pro Peak Influence 571 | . 204 49 . . 309 571 363 . . 326 . . . . Initial 216 | . . 49 . . . 35 216 . . 158 . . . . Average 185 | . 91 49 . . 111 342 231 . . 156 . . . . Maximum Alert Level 2 | . 1 . . . 1 2 1 . . 1 . . . . Low Security (%) 62 | 100 98 100 . 100 89 20 25 . . 76 . . . . Level 1 27 | . 1 . . . 10 33 74 . . 23 . . . . Level 2 9 | . . . . . . 46 . . . . . . . . Level 3 . | . . . . . . . . . . . . . . . Level 4 . | . . . . . . . . . . . . . . . Level 5 . | . . . . . . . . . . . . . . . High Security . | . . . . . . . . . . . . . . . Max Security . | . . . . . . . . . . . . . . . Squads Dispatched 18 | . 3 . . . 1 . 7 . 1 6 . . . . Investigation 2 | . 1 . . . . . . . . 1 . . . . Extermination 3 | . . . . . . . 2 . . 1 . . . . Reinforcement 9 | . 2 . . . 1 . 3 . . 3 . . . . Assault 2 | . . . . . . . . . 1 1 . . . . Garrison 2 | . . . . . . . 2 . . . . . . . Intercept . | . . . . . . . . . . . . . . . Searches Triggered . | . . . . . . . . . . . . . . . Construction Impeded 1 | . . . . . . . 1 . . . . . . . Haulers Reinforced . | . . . . . . . . . . . . . . . Active Scanning Responses . | . . . . . . . . . . . . . . . Cargo Convoy Interrupts . | . . . . . . . . . . . . . . . Stealth | -11 -10 -10 -10 -9 -8 -8 -7 -7 -7 -6 -6 -6 -6 -5 --------- Run | Yrd Mat Min Exi Min Mat Sto Fac Low Low Fac Low Low Zio Pro Distress Signals 13 | . . . . . 1 1 . . . . . . . 11 Communications Jammed . | . . . . . . . . . . . . . . . Distress Signals . | . . . . . . . . . . . . . . . Times Spotted 162 | . 17 2 . . 23 28 9 17 13 32 1 3 . 17 Peak Tracking Total 10 | . 5 2 . . 6 4 2 4 8 10 1 2 . 5 Tactical Retreats 14 | . . . . . 1 1 . 3 . 7 . . . 2 Traps | -11 -10 -10 -10 -9 -8 -8 -7 -7 -7 -6 -6 -6 -6 -5 ------- Run | Yrd Mat Min Exi Min Mat Sto Fac Low Low Fac Low Low Zio Pro Traps Triggered 8 | . 1 . . . . 2 4 . . 1 . . . . Indirectly . | . . . . . . . . . . . . . . . Trap Hack Attempts . | . . . . . . . . . . . . . . . Triggered . | . . . . . . . . . . . . . . . Disarmed . | . . . . . . . . . . . . . . . Reprogrammed . | . . . . . . . . . . . . . . . Reused . | . . . . . . . . . . . . . . . Traps Extracted . | . . . . . . . . . . . . . . . Installed . | . . . . . . . . . . . . . . . Triggered 3 | . . . . . . . . . . 1 2 . . . Machines | -11 -10 -10 -10 -9 -8 -8 -7 -7 -7 -6 -6 -6 -6 -5 ---------- Run | Yrd Mat Min Exi Min Mat Sto Fac Low Low Fac Low Low Zio Pro Machines Disabled 8 | . . . . . . 4 4 . . . . . . . Max in Single Turn 2 | . . . . . . 1 2 . . . . . . . Garrison Access 2 | . . . . . . . . . . 2 . . . . Machines Repaired . | . . . . . . . . . . . . . . . Machines Dismantled . | . . . . . . . . . . . . . . . Machines Sabotaged . | . . . . . . . . . . . . . . . Overloaded Fab Kills . | . . . . . . . . . . . . . . . Hacking | -11 -10 -10 -10 -9 -8 -8 -7 -7 -7 -6 -6 -6 -6 -5 --------- Run | Yrd Mat Min Exi Min Mat Sto Fac Low Low Fac Low Low Zio Pro Machines Accessed 31 | . 4 . 2 . 4 11 2 . . 6 1 1 . . Terminals 20 | . 4 . . . 3 8 1 . . 3 1 . . . Fabricators 3 | . . . . . . . 1 . . 2 . . . . Repair Stations 3 | . . . . . 1 2 . . . . . . . . Recycling Units . | . . . . . . . . . . . . . . . Scanalyzers . | . . . . . . . . . . . . . . . Garrison Access 2 | . . . . . . 1 . . . 1 . . . . Total Hacks 86 | . 10 . 26 . 11 24 2 . . 11 1 1 . . Successful 56 | . 5 . 26 . 6 13 1 . . 3 1 1 . . Failed 29 | . 4 . . . 5 11 1 . . 8 . . . . Catastrophic 5 | . . . . . . 1 1 . . 3 . . . . Database Lockouts 1 | . 1 . . . . . . . . . . . . . Manual 41 | . 12 . . . 7 14 1 . . 7 . . . . Terminals 44 | . 10 . . . 7 18 1 . . 7 1 . . . Fabricators 4 | . . . . . . . 1 . . 3 . . . . Repair Stations 9 | . . . . . 4 5 . . . . . . . . Recycling Units . | . . . . . . . . . . . . . . . Scanalyzers . | . . . . . . . . . . . . . . . Garrison Access 2 | . . . . . . 1 . . . 1 . . . . Terminal Hacks 36 | . 1 . 26 . 2 5 . . . . 1 1 . . Record 27 | . . . 26 . . . . . . . 1 . . . Robot Analysis 4 | . 1 . . . 1 2 . . . . . . . . Open Door 4 | . . . . . . 3 . . . . . 1 . . Branch Access Points 1 | . . . . . 1 . . . . . . . . . Fabricator Hacks 1 | . . . . . . . . . . 1 . . . . Build 1 | . . . . . . . . . . 1 . . . . Repair Station Hacks 5 | . . . . . 2 3 . . . . . . . . Scan Component 3 | . . . . . 1 2 . . . . . . . . Repair 2 | . . . . . 1 1 . . . . . . . . Recycling Unit Hacks . | . . . . . . . . . . . . . . . Scanalyzer . | . . . . . . . . . . . . . . . Garrison Access Hacks 1 | . . . . . . . . . . 1 . . . . Seal Access 1 | . . . . . . . . . . 1 . . . . Unauthorized Hacks 13 | . 4 . . . 2 5 1 . . 1 . . . . Terminals 13 | . 4 . . . 2 5 1 . . 1 . . . . Botnet 13 | . 4 . . . 2 5 1 . . 1 . . . . Fabricators . | . . . . . . . . . . . . . . . Repair Stations . | . . . . . . . . . . . . . . . Recycling Units . | . . . . . . . . . . . . . . . Scanalyzers . | . . . . . . . . . . . . . . . Garrison Access . | . . . . . . . . . . . . . . . Data Cores Recovered 1 | . . . . . . 1 . . . . . . . . Used . | . . . . . . . . . . . . . . . Hacking Detections 17 | . 2 . . . 2 8 1 . . 4 . . . . Full Trace Events 1 | . . . . . . . . . . 1 . . . . Feedback Events . | . . . . . . . . . . . . . . . Feedback Blocked . | . . . . . . . . . . . . . . . Robot Schematics Acquired 2 | . . . . . . . . . . . . . 2 . Robots Built . | . . . . . . . . . . . . . . . Authchips . | . . . . . . . . . . . . . . . Time . | . . . . . . . . . . . . . . . Total Robot Build Rating . | . . . . . . . . . . . . . . . Part Schematics Acquired 15 | . . . . . . . . . . . . . 15 . Parts Built 2 | . . . . . . . . . . 2 . . . . Authchips . | . . . . . . . . . . . . . . . Time 128 | . . . . . . . . . . 128 . . . . Total Part Build Rating 16 | . . . . . . . . . . 16 . . . . Parts Repaired 2 | . . . . . 1 1 . . . . . . . . Time 94 | . . . . . 50 44 . . . . . . . . Parts Recycled . | . . . . . . . . . . . . . . . Recycled Matter . | . . . . . . . . . . . . . . . Retrieved Matter . | . . . . . . . . . . . . . . . Retrieved Components . | . . . . . . . . . . . . . . . Parts Scanalyzed . | . . . . . . . . . . . . . . . Part Schematics Acquired . | . . . . . . . . . . . . . . . Parts Damaged . | . . . . . . . . . . . . . . . Bothacking | -11 -10 -10 -10 -9 -8 -8 -7 -7 -7 -6 -6 -6 -6 -5 ------------ Run | Yrd Mat Min Exi Min Mat Sto Fac Low Low Fac Low Low Zio Pro Used RIF Installer . | . . . . . . . . . . . . . . . Robots Hacked . | . . . . . . . . . . . . . . . Non-combat . | . . . . . . . . . . . . . . . Combat . | . . . . . . . . . . . . . . . Robot Hacks Applied . | . . . . . . . . . . . . . . . Relay Couplers Released 1 | . . . . . . . . . . 1 . . . . Machine Destruction 1 | . . . . . . . . . . 1 . . . . Fabnet Peak Effective % . | . . . . . . . . . . . . . . . Robots Rewired . | . . . . . . . . . . . . . . . Allies Hacked . | . . . . . . . . . . . . . . . Hacks Repelled . | . . . . . . . . . . . . . . . Allies | -11 -10 -10 -10 -9 -8 -8 -7 -7 -7 -6 -6 -6 -6 -5 -------- Run | Yrd Mat Min Exi Min Mat Sto Fac Low Low Fac Low Low Zio Pro Total Allies 17 | . . . . . . 10 . . . . . . 7 . Largest Group 10 | . . . . . . 10 . . . . . . 7 7 Highest-Rated Group 226 | . . . . . . 173 . . . . . . 226 226 Highest-Rated Ally 39 | . . . . . . 29 . . . . . . 39 39 Total Orders . | . . . . . . . . . . . . . . . Ally Attacks 124 | . . . . . . 70 . . . . . . . 54 Total Damage 2406 | . . . . . . 942 . . . . . . . 1464 Kills 18 | . . . . . . 9 . . . . . . . 9 Allies Corrupted . | . . . . . . . . . . . . . . . Allies Melted . | . . . . . . . . . . . . . . . Intel | -11 -10 -10 -10 -9 -8 -8 -7 -7 -7 -6 -6 -6 -6 -5 ------- Run | Yrd Mat Min Exi Min Mat Sto Fac Low Low Fac Low Low Zio Pro Robot Analysis Total 4 | . 1 . . . 1 2 . . . . . . . . Derelict Logs Recovered 7 | . . . . 1 . . . 2 . . 1 1 1 1 Drone Launches . | . . . . . . . . . . . . . . . Drone Recoveries . | . . . . . . . . . . . . . . . Exploration | -11 -10 -10 -10 -9 -8 -8 -7 -7 -7 -6 -6 -6 -6 -5 ------------- Run | Yrd Mat Min Exi Min Mat Sto Fac Low Low Fac Low Low Zio Pro Turns Passed 8349 | 71 533 148 420 18 951 1031 799 553 109 1348 827 506 593 442 Spaces Moved 6611 | 55 277 118 351 16 606 724 638 409 73 865 665 497 994 323 Core 19 | 10 . . . . . . . . . . . 9 . . Treads . | . . . . . . . . . . . . . . . Legs 2234 | 45 277 118 351 16 175 . . . . 89 665 240 . 258 Wheels 3051 | . . . . . 431 724 638 409 73 776 . . . . Hover . | . . . . . . . . . . . . . . . Flight 1307 | . . . . . . . . . . . . 248 994 65 Fastest Speed 34 | 50 120 120 120 120 100 100 100 100 115 100 120 40 40 34 Average Speed 96 | 107 120 120 120 120 105 100 100 114 115 107 120 78 40 103 Slowest Speed 330 | 120 120 120 120 120 120 100 100 115 115 330 120 120 40 120 Overloaded Moves . | . . . . . . . . . . . . . . . Propulsion Burnouts . | . . . . . . . . . . . . . . . Robots Hopped 3 | . . . . . . . . . . . . 1 . 2 Cave-ins Triggered . | . . . . . . . . . . . . . . . Exploration Rate (%) 49 | 3 45 17 84 8 61 81 25 66 11 27 98 74 88 52 Regions Visited 14 Branch Regions 10 Pre-discovered Areas 6 | . . . 1 1 . . . . . . . 1 3 . Known Exits Taken 9 | . . . . . 1 1 1 1 1 1 1 1 1 . Unknown Exits Taken 5 | 1 1 1 1 1 . . . . . . . . . . Scrap Searched 15 | . . 1 . . . . . 2 2 . 4 4 . 2 Spaces Dug . | . . . . . . . . . . . . . . . Terrain Destroyed 34 | . . . . . 1 . 25 . . . . 6 . 2 Melee . | . . . . . . . . . . . . . . . Projectile 2 | . . . . . . . . . . . . . . 2 AOE 32 | . . . . . 1 . 25 . . . . 6 . . Terrain Rammed . | . . . . . . . . . . . . . . . Walls Destroyed . | . . . . . . . . . . . . . . . Machines Disabled . | . . . . . . . . . . . . . . . Actions | -11 -10 -10 -10 -9 -8 -8 -7 -7 -7 -6 -6 -6 -6 -5 --------- Run | Yrd Mat Min Exi Min Mat Sto Fac Low Low Fac Low Low Zio Pro Total 7958 | 65 389 123 350 15 820 911 740 457 83 1176 682 561 1188 398 Wait 759 | . 47 4 . . 88 112 30 30 . 203 8 16 192 29 Move 6591 | 54 276 117 350 15 605 723 637 408 72 864 664 494 993 319 Hop 3 | . . . . . . . . . . . . 1 . 2 Pick Up 70 | 6 6 . . . 20 3 12 1 2 11 3 1 1 4 Fast Attach 57 | 3 1 1 . . 15 5 6 1 1 9 . 4 1 10 Attach 47 | 2 1 . . . 9 1 3 2 2 15 1 8 . 3 Detach 12 | . . . . . 4 1 . . . 2 . 4 . 1 Swap 20 | . 6 . . . 5 2 . . . 6 . . . 1 Drop 71 | . 6 . . . 21 5 17 . . 12 1 3 1 5 Fire 316 | . 46 1 . . 53 58 27 14 6 52 5 30 . 24 Melee . | . . . . . . . . . . . . . . . Ram 1 | . . . . . . 1 . . . . . . . . Kick . | . . . . . . . . . . . . . . . Crush . | . . . . . . . . . . . . . . . Escape Stasis 10 | . . . . . . . 8 . . 2 . . . . Rewire 1 | . . . . . . . . 1 . . . . . . Trap . | . . . . . . . . . . . . . . . Miscellaneous . | . . . . . . . . . . . . . . . Route ------- -11/Scrapyard -10/Materials (discovered 2 exits: [*Mat] / [*Min]) -10/Mines -10/Exiles -9/Mines -8/Materials (discovered 3 exits: *Fac / *Sto x2) -8/Storage -7/Factory -7/Lower Caves -7/Lower Caves -6/Factory (discovered 3 exits: *Fac x2 / *Low) -6/Lower Caves -6/Lower Caves (discovered 2 exits: *Fac / *Zio) -6/Zion -5/Proximity Caves History --------- Turn | Location | Event 5 | -11/Scrapyard | Discovered new exit (range 15) 72 | -11/Scrapyard | Entered Materials 302 | -10/Materials | Build established: Mutant 328 | -10/Materials | Discovered new exit (range 7) 373 | -10/Materials | Central database locked down 418 | -10/Materials | Discovered new exit (range 11) 523 | -10/Materials | Core integrity fell below 50% 605 | -10/Materials | Entered Mines 615 | -10/Mines | Met a Derelict bent on vengeance 737 | -10/Mines | Deemed a non-threat by the Exiles lab entrance 738 | -10/Mines | Discovered new exit (range 5) 753 | -10/Mines | Entered Exiles 783 | -10/Exiles | Met 8R-AWN 803 | -10/Exiles | Met EX-HEX 837 | -10/Exiles | Met EX-BIN 871 | -10/Exiles | Met EX-DEC 877 | -10/Exiles | Learned location of Zion (-6) 926 | -10/Exiles | Visited The Gauntlet 1004 | -10/Exiles | Build established: Scavenger-Mutant 1161 | -10/Exiles | Discovered new exit (range 12) 1173 | -10/Exiles | Entered Mines 1179 | -9/Mines | Discovered new exit (range 8) 1191 | -9/Mines | Entered Materials 1191 | -8/Materials | Evolved 4 slots: Propulsion x2, Utility x2 1485 | -8/Materials | Discovered new exit (range 5) 1559 | -8/Materials | Lost 7 parts (1p2n1u3w) 1777 | -8/Materials | Discovered new exit (range 13) 1812 | -8/Materials | Build established: Mutant 1962 | -8/Materials | Repaired Adv. Heat Sink 2068 | -8/Materials | Identified exit to Storage 2142 | -8/Materials | Entered Storage 2496 | -8/Storage | Assisted by bots powering up and referring to "LRC-V3" 2548 | -8/Storage | Discovered new exit (range 8) 2554 | -8/Storage | Identified exit to Factory 2775 | -8/Storage | Lost 7 allies 2996 | -8/Storage | Repaired Imp. Deuterium Engine 3173 | -8/Storage | Entered Factory 3173 | -7/Factory | Evolved 2 slots: Utility x2 3846 | -7/Factory | Garrison activated, responded to threat 3948 | -7/Factory | Lost 3 parts (2u1w) 3964 | -7/Factory | Discovered new exit (range 8) 3970 | -7/Factory | Identified exit to Lower Caves 3972 | -7/Factory | Entered Lower Caves 4075 | -7/Lower Caves | Learned Factory emergency access door positions 4265 | -7/Lower Caves | Encountered a Warlord checkpoint 4367 | -7/Lower Caves | Learned Factory trap positions 4452 | -7/Lower Caves | Attracted the attention of an 0b10 checkpoint 4496 | -7/Lower Caves | Discovered new exit (range 15) 4516 | -7/Lower Caves | Identified exit to Lower Caves 4525 | -7/Lower Caves | Entered another Lower Caves area 4611 | -7/Lower Caves | Attracted the attention of an 0b10 checkpoint 4622 | -7/Lower Caves | System corruption reached 10% 4626 | -7/Lower Caves | Discovered new exit (range 5) 4630 | -7/Lower Caves | Attracted the attention of an 0b10 outpost 4633 | -7/Lower Caves | Identified exit to Factory 4634 | -7/Lower Caves | Entered Factory 4634 | -6/Factory | Evolved 2 slots: Propulsion x2 4635 | -6/Factory | Loaded intel: 121 trap records 5025 | -6/Factory | Discovered new exit (range 7) 5030 | -6/Factory | Identified exit to Factory 5238 | -6/Factory | Fabricated Lgt. Particle Reactor (x2) 5546 | -6/Factory | Spotted B-75 Beast 5624 | -6/Factory | Discovered exit to Factory (range 9) 5734 | -6/Factory | System corruption reached 10% 5772 | -6/Factory | Lost 11 parts (1p3n4u3w) 5961 | -6/Factory | Discovered new exit (range 11) 5979 | -6/Factory | Identified exit to Lower Caves 5982 | -6/Factory | Entered Lower Caves 6054 | -6/Lower Caves | Learned Factory emergency access door positions 6213 | -6/Lower Caves | Build established: Scavenger-Mutant 6256 | -6/Lower Caves | Core integrity fell below 50% 6345 | -6/Lower Caves | Discovered new exit (range 4) 6349 | -6/Lower Caves | Identified exit to Lower Caves 6809 | -6/Lower Caves | Entered another Lower Caves area 6818 | -6/Lower Caves | Discovered exit to Factory (range 10) 6920 | -6/Lower Caves | Spotted B-75 Beast 7186 | -6/Lower Caves | Build established: Mutant 7189 | -6/Lower Caves | Core integrity fell below 20% 7201 | -6/Lower Caves | Destroyed B-75 Beast 7214 | -6/Lower Caves | Lost 9 parts (2p3n2u2w) 7310 | -6/Lower Caves | Discovered new exit (range 14) 7315 | -6/Lower Caves | Identified exit to Zion 7315 | -6/Lower Caves | Entered Zion 7338 | -6/Zion | System corruption cleaned by Quarantine Array 7353 | -6/Zion | Discovered new exit (range 11) 7357 | -6/Zion | Identified exit to Proximity Caves 7368 | -6/Zion | Given A8's code to call for help 7507 | -6/Zion | Learned Factory recycling unit intel 7599 | -6/Zion | Given the Hacking Drone Bay 7600 | -6/Zion | Found Prototype Device 7600 | -6/Zion | Identified Hacking Drone Bay 7642 | -6/Zion | Imprinted 7644 | -6/Zion | Declared Zion's savior 7673 | -6/Zion | Gained Derelict followers 7908 | -6/Zion | Entered Proximity Caves 7908 | -5/Proximity Caves | Accompanied by 7 allies 8115 | -5/Proximity Caves | Lost 5 allies 8159 | -5/Proximity Caves | Learned Factory security intel 8246 | -5/Proximity Caves | Build established: Scavenger-Mutant 8350 | -5/Proximity Caves | Destroyed by D-63 Destroyer with Heavy Rocket Launcher Last Messages --------------- 08140_ Identified Salvage Targeting Computer. 08141_ Discarded Salvage Targeting Computer. 08142_ Acquired 10 matter. 08143_ Dropped Corrupted Carbon-fiber Leg. 08145_ Acquired Lgt. Nuclear Core. 08159_ Acquired derelict log, extracted data. Data stored: Factory security intel. 08171_ System corrupted: Component data lost. 08189_ System corrupted: Heat flow error (+166). 08206_ Dropped Disruptor Cannon. 08213_ Acquired Disruptor Cannon. 08233_ System corrupted: Heat flow error (+275). 08279_ 4LX=OBNEJ <&BNOS0OLMI0EUS|ZBDFI>BCTRN%UX 08299_ System corrupted: Matter fused (-5). 08344_ Carbon-fiber Leg destroyed. 08347_ The unstable cave ceiling collapses. 08348_ Lgt. Angular Momentum Engine destroyed. 08348_ Flexi-carbon Leg destroyed. 08350_ The unstable cave ceiling collapses. 08350_ Carbon-fiber Leg destroyed. Map ----- +----------------------------------------------------+ | ?????????????????????????????????????????????????? | | ?????????????????????????????????????????????????? | | ?????????????????????????????????????????????????? | | ?????????????????????????????????????????????????? | | ?????????????????????????????????????????????????? | | ???????????????????????? ??????????????????????? | | ?????????????????????? ??????????????????????? | | ??????????????????? ??????????????????????? | | ????????????????? ??????????????????????? | | ??????????????? ######????????????????? | | ??????????????? #????????????????? | | ?????????????? d #????????????????? | | ?????????????? #????????????????? | | ????????????? #????????????????? | | ????????????? #????????????????? | | ????????????? #????????????????? | | ???????????? #????????????????? | | ????????????? #????????????????? | | ????????????????? ??????????????????? | | ????????????????????? ????????????????????? | | ????????????????????###?# #?##??????????????????? | | ????????????????????# # ## #??????????????????? | | ???????????????????## # # #??????????????????? | | ???????????????????# #??????????????????? | | ???????????????????# ##??????????????????? | | ???????????????????# #@ ##?????????????????? | | ???##??????????????## ##????????????????? | | ???? ##???????????##" #????????????????? | | ????? ? ###???????## ##???????????????? | | ????? ##??????#""" ##??????????????? | | ?????? # #??????# "#" ##?????????????? | | ??????? ???????##### #?????????????? | | #??????# #??####???## #?????????????? | | #??????# ##?# ##?## #?????????????? | | #?????## #?# #?# #?????????????? | | #?????# ### #?## ### ##?????????????? | | #????## # ##?# ### #??????????????? | | ?##### # ### ## #??????????????? | | ## ### #### #??????????????? | | # # # # ### #?## #??????????????? | | # # ##?###### #??# ##?????????????? | | # ##### ## #??????## #?# ##????????????? | | # ##???# ##???????######?# #????????????? | | ##????###?#????????????#??## ##????????????? | | ###??????????????# ### ## ##?????????????? | | ?????????????????# ###??????????????? | | ??????????????????# ##????????????????? | | ??????????????????## ###### ##?????????????????? | | ???????????????????????????####??????????????????? | | ?????????????????????????????????????????????????? | +----------------------------------------------------+ Best States ------------- Heat Dissipation 83 Energy Generation 23 Energy Capacity 310 Matter Stores 300 Matter Capacity 300 Sight Range 16 Terrain Scan Density 10 Corruption Block 8 Armor Coverage 675 Resistance: KI 30 Resistance: TH 10 Evasion (%) 62 Targeting Accuracy 8 Energy Filtering 30 Particle Charging 20 Salvage Targeting 4 Item Schematics ----------------- Spk. Medium Treads | -6/Zion | Archive Mak. Trap Scanner | -6/Zion | Archive Lyr. Heavy Armor Plating | -6/Zion | Archive Imp. Heavy Armor Plating | -6/Zion | Archive Imp. Weapon Cycler | -6/Zion | Archive Cloaking Device | -6/Zion | Archive Adv. Cryofiber Web | -6/Zion | Archive Antimatter Reactor | -6/Zion | Archive Power Sword | -6/Zion | Archive Tesla Rifle | -6/Zion | Archive Imp. Plasma Cutter | -6/Zion | Archive Plasma Flamer | -6/Zion | Archive Matter Compressor | -6/Zion | Archive Hvy. Shock Bomb Launcher | -6/Zion | Archive Stasis Canceller | -6/Zion | Archive Robot Schematics ------------------ H-66 Slayer | -6/Zion | Archive A-15 Conveyor | -6/Zion | Archive Fabricated ------------ Lgt. Particle Reactor | x2 | -6/Factory | Preloaded Alien Tech Used ----------------- None Achievements -------------- None Challenges ------------ None Game ------ Seed AssembledAlloyArchive Manual? 0 Play Time 01:10:06 Cumulative 58.6 hours Start 2024.03.18 @ 14:20:13 End 2024.03.18 @ 15:29:39 Sessions 1 Manual Loads 0 Difficulty Rogue Special Mode None Game No. 98 Rogue 82 Adventurer 16 Explorer 0 Win Type - Total 1 Types 1/0/0/0/0/0/0/0/0 Lore% 34 Gallery% 53 Achievement% 47 Wizard Run 0 Options --------- Layout 1 ASCII 0 Keyboard 0 Movement Vi Keybinds 0 Fullscreen 0 Font 20/SmallcapsGlow Map View 64x48 Zoom Use 0% Tactical HUD 1 Map Filters NONE Filters NONE Steam 1 RUN: 0cf67d6d-3034-4725-9dab-70de49a897a9